[Event "Guimaraes Open 2019"]
[Site "Guimaraes"]
[Date "2019.08.30"]
[Round "4.20"]
[White "Jimenez Martinez, Jose Vicente"]
[Black "Silva, Tiago Alexandre Pinh"]
[Result "1-0"]
[ECO "D55"]
[WhiteElo "2264"]
[BlackElo "1833"]
[Annotator "RC"]
[PlyCount "141"]
[EventDate "2019.08.28"]
[EventType "swiss"]
[EventCountry "POR"]
[SourceTitle "playchess.com"]
[Source "ChessBase"]
[SourceQuality "1"]
[TimeControl "5400+30"]

1. d4 {[%emt 0:00:00]} Nf6 {[%emt 0:00:00]} 2. c4 {[%emt 0:00:00]} e6 {[%emt 0:00:00]} 3. Nc3 {[%emt 0:00:00]} d5 {[%emt 0:00:00]} 4. Nf3 {[%emt 0:00:00]} Be7 {[%emt 0:00:15]} 5. Bg5 {[%emt 0:00:00]} O-O {[%emt 0:00:06]} 6. e3 {[%emt 0:00:00]} b6 {[%emt 0:05:44]} 7. cxd5 {[%emt 0:00:41]} Nxd5 {[%emt 0:01:09]} 8. Bxe7 {[%emt 0:00:30]} Qxe7 {[%emt 0:00:27]} 9. Nxd5 {[%emt 0:01:58]} exd5 {[%emt 0:00:12]} 10. Rc1 {[%emt 0:00:20]} Bb7 {[%emt 0:00:58]} 11. Bd3 {[%emt 0:00:15]} g6 {[%emt 0:09:00]} 12. h4 {[%emt 0:00:43]} c5 {[%emt 0:08:07]} 13. b3 {[%emt 0:05:05]} Nc6 {[%emt 0:07:11]} 14. Be2 {[%emt 0:02:21]} cxd4 {[%emt 0:03:29]} 15. Nxd4 {[%emt 0:00:09]} Qb4+ {[%emt 0:00:35]} 16. Qd2 {[%emt 0:00:26]} Qxd2+ {[%emt 0:04:47]} 17. Kxd2 {[%emt 0:00:44]} Nxd4 {[%emt 0:00:06]} 18. exd4 {[%emt 0:00:03]} Rac8 {[%emt 0:00:44]} 19. Bg4 {[%emt 0:01:34]} f5 {[%emt 0:05:11]} 20. Bf3 {[%emt 0:00:42]} Kf7 {[%emt 0:09:02]} 21. Rhe1 {[%emt 0:00:58]} Rfd8 {[%emt 0:05:42]} 22. h5 {[%emt 0:02:25]} Rh8 {[%emt 0:04:05]} 23. Rh1 {[%emt 0:06:41]} g5 {[%emt 0:06:53]} 24. g3 {[%emt 0:00:55]} h6 {[%emt 0:04:36]} 25. Rhe1 {[%emt 0:00:14]} Kf6 {[%emt 0:03:07]} 26. Rxc8 {[%emt 0:01:09]} Rxc8 {[%emt 0:03:08]} 27. Re5 {[%emt 0:00:50]} Rd8 {[%emt 0:00:28]} 28. Bg2 {[%emt 0:00:13]} Ba8 {[%emt 0:03:18]} 29. Bh3 {[%emt 0:00:29]} g4 {[%emt 0:01:16]} 30. Bg2 {[%emt 0:00:09]} Bb7 {[%emt 0:02:00]} 31. Ke3 {[%emt 0:01:17]} Kg5 {[%emt 0:03:18]} 32. f4+ {[%emt 0:07:17]} Kf6 {[%emt 0:00:15]} 33. Bf1 {[%emt 0:01:07]} Bc8 {[%emt 0:01:52]} 34. Kd2 {[%emt 0:01:20]} Be6 {[%emt 0:01:01]} 35. a4 {[%emt 0:01:22]} a5 {[%emt 0:01:37]} 36. Bd3 {[%emt 0:00:48]} Rc8 {[%emt 0:00:55]} 37. Re1 {[%emt 0:00:04]} Rc7 {[%emt 0:04:36]} 38. Bb5 {[%emt 0:00:27]} Bf7 {[%emt 0:01:01]} 39. Rb1 {[%emt 0:00:12]} Bxh5 {[%emt 0:01:00]} 40. b4 {[%emt 0:01:37]} axb4 {[%emt 0:00:46]} 41. Rxb4 {[%emt 0:00:02]} Bf7 {[%emt 0:00:11]} 42. Bd3 {[%emt 0:00:23]} Rc6 {[%emt 0:00:56]} 43. Ba6 {[%emt 0:00:08]} Ke7 {[%emt 0:01:08]} 44. Rb1 {[%emt 0:00:45]} Re6 {[%emt 0:01:06]} 45. Bd3 {[%emt 0:03:38]} Kf6 {[%emt 0:00:20]} 46. Rc1 {[%emt 0:00:44]} Bg6 {[%emt 0:00:41]} 47. Rc8 {[%emt 0:00:39]} Re8 {[%emt 0:00:20]} 48. Rc7 {[%emt 0:01:31]} Re7 {[%emt 0:00:02]} 49. Rc1 {[%emt 0:00:17]} Re6 {[%emt 0:00:08]} 50. Bc2 {[%emt 0:03:08]} Rc6 {[%emt 0:00:49]} 51. Rb1 {[%emt 0:00:01]} Be8 {[%emt 0:00:39]} 52. Bb3 {[%emt 0:00:16]} Bf7 {[%emt 0:00:29]} 53. Re1 {[%emt 0:00:36]} Be6 {[%emt 0:00:19]} 54. Re5 {[%emt 0:00:26]} Rd6 {[%emt 0:00:46]} 55. Kc3 {[%emt 0:00:02]} Ke7 {[%emt 0:00:34]} 56. Kb4 {[%emt 0:00:27]} Kd7 {[%emt 0:00:09]} 57. Bc2 {[%emt 0:00:04]} Rc6 {[%emt 0:00:38]} 58. Kb3 {[%emt 0:03:58]} Rc4 {[%emt 0:00:36]} 59. Bd3 {[%emt 0:00:04]} Rxd4 {[%emt 0:00:30]} 60. Kc3 {[%emt 0:00:02]} Rxd3+ {[%emt 0:00:50]} 61. Kxd3 {[%emt 0:00:01]} Kd6 {[%emt 0:00:29]} 62. Kd4 {[%emt 0:00:14]} h5 {[%emt 0:00:35]} 63. Re1 {[%emt 0:00:04]} Bd7 {[%emt 0:00:33]} 64. Rb1 {[%emt 0:00:22]} Bxa4 {[%emt 0:00:33]} 65. Rxb6+ {[%emt 0:00:06]} Bc6 {[%emt 0:00:03]} 66. Ra6 {[%emt 0:00:15]} Kc7 {[%emt 0:01:07]} 67. Kc5 {[%emt 0:00:07]} Bd7 {[%emt 0:00:23]} 68. Rh6 {[%emt 0:00:06]} Be8 {[%emt 0:00:12]} 69. Rh7+ {[%emt 0:00:06]} Kd8 {[%emt 0:00:14]} 70. Kxd5 {[%emt 0:00:05]} Bg6 {[%emt 0:00:27]} 71. Rh6 {[%emt 0:00:11]} 1-0

[Event "Guimaraes Open 2019"]
[Site "Guimaraes"]
[Date "2019.08.30"]
[Round "4.32"]
[White "Dong, Rafael"]
[Black "Pintor, Simao Maciel Abranch"]
[Result "0-1"]
[ECO "D32"]
[WhiteElo "1432"]
[BlackElo "2076"]
[Annotator "NA RC"]
[PlyCount "102"]
[EventDate "2019.08.28"]
[EventType "swiss"]
[EventCountry "POR"]
[SourceTitle "playchess.com"]
[Source "ChessBase"]
[SourceQuality "1"]
[TimeControl "5400+30"]

1. c4 {[%emt 0:00:00]} e6 {[%emt 0:00:23]} 2. Nc3 {[%emt 0:00:00]} d5 {[%emt 0:00:05]} 3. cxd5 {[%emt 0:00:07]} exd5 {[%emt 0:00:05]} 4. d4 {[%emt 0:00:13]} c5 {[%emt 0:00:05]} 5. Nf3 {[%emt 0:00:17]} Nc6 {[%emt 0:00:05]} 6. Bf4 {[%emt 0:00:18]} Nf6 {[%emt 0:00:34]} 7. e3 {[%emt 0:00:19]} cxd4 {[%emt 0:01:47]} 8. Nxd4 {[%emt 0:01:55]} Bb4 {[%emt 0:07:32]} 9. Nxc6 {[%emt 0:08:09]} bxc6 {[%emt 0:00:12]} 10. Bd3 {[%emt 0:01:01]} O-O {[%emt 0:02:18]} 11. Qc2 {[%emt 0:03:24]} d4 {[%emt 0:01:47]} 12. exd4 {[%emt 0:00:39]} Re8+ {[%emt 0:03:31]} 13. Be3 {[%emt 0:00:23]} Qxd4 {[%emt 0:08:53]} 14. O-O {[%emt 0:02:07]} Qh4 {[%emt 0:00:45]} 15. g3 {[%emt 0:04:15]} Qh3 {[%emt 0:02:20]} 16. Bf4 {[%emt 0:03:08]} Be6 {[%emt 0:07:42]} 17. a3 {[%emt 0:00:26]} Bc5 {[%emt 0:00:45]} 18. Kh1 {[%emt 0:02:15]} Nd5 {[%emt 0:04:23]} 19. Nxd5 {[%emt 0:01:07]} Bxd5+ {[%emt 0:00:04]} 20. f3 {[%emt 0:00:11]} Be3 {[%emt 0:00:40]} 21. Bf5 {[%emt 0:02:26]} Qh5 {[%emt 0:01:41]} 22. Bg4 {[%emt 0:00:40]} Qg6 {[%emt 0:00:08]} 23. Qxg6 {[%emt 0:00:13]} fxg6 {[%emt 0:01:01]} 24. Bd7 {[%emt 0:04:37]} Re7 {[%emt 0:01:23]} 25. Bxe3 {[%emt 0:02:45]} Rxe3 {[%emt 0:00:23]} 26. Kg2 {[%emt 0:00:23]} Rf8 {[%emt 0:01:20]} 27. Rac1 {[%emt 0:04:26]} Re2+ {[%emt 0:01:57]} 28. Kg1 {[%emt 0:00:30]} Rf6 {[%emt 0:04:39]} 29. b4 {[%emt 0:00:47]} Bxf3 {[%emt 0:00:27]} 30. Rxf3 {[%emt 0:01:01]} Rxf3 {[%emt 0:00:16]} 31. Bg4 {[%emt 0:00:07]} Ree3 {[%emt 0:00:29]} 32. Bxf3 {[%emt 0:00:26]} Rxf3 {[%emt 0:00:03]} 33. a4 {[%emt 0:01:45]} Rf6 {[%emt 0:02:24]} 34. Kg2 {[%emt 0:01:26]} g5 {[%emt 0:01:23]} 35. g4 {[%emt 0:00:19]} Rf4 {[%emt 0:01:18]} 36. Rxc6 {[%emt 0:00:48]} Rxg4+ {[%emt 0:00:14]} 37. Kf3 {[%emt 0:00:25]} Rxb4 {[%emt 0:00:18]} 38. Ra6 {[%emt 0:00:18]} Rb7 {[%emt 0:00:55]} 39. Ke4 {[%emt 0:00:48]} g6 {[%emt 0:00:52]} 40. Ke5 {[%emt 0:01:02]} Kg7 {[%emt 0:00:08]} 41. Ra5 {[%emt 0:02:28]} Rf7 {[%emt 0:01:31]} 42. Ke6 {[%emt 0:02:29]} g4 {[%emt 0:02:29]} 43. Kd6 {[%emt 0:02:14]} h5 {[%emt 0:00:23]} 44. Rb5 {[%emt 0:02:16]} Rf2 {[%emt 0:01:53]} 45. Rb7+ {[%emt 0:00:23]} Kf6 {[%emt 0:00:06]} 46. Rxa7 {[%emt 0:00:19]} Rd2+ {[%emt 0:00:25]} 47. Kc5 {[%emt 0:00:18]} Rxh2 {[%emt 0:00:09]} 48. Rb7 {[%emt 0:00:45]} Ra2 {[%emt 0:00:44]} 49. Rb4 {[%emt 0:02:01]} g3 {[%emt 0:00:18]} 50. Kb5 {[%emt 0:00:32]} g2 {[%emt 0:00:21]} 51. Rb1 {[%emt 0:00:11]} h4 {[%emt 0:00:43]} 0-1

[Event "Guimaraes Open 2019"]
[Site "Guimaraes"]
[Date "2019.08.30"]
[Round "4.33"]
[White "Sanleon Pravisano, Nieves"]
[Black "Pinto, Andre Jorge Pimparel"]
[Result "1-0"]
[ECO "D18"]
[WhiteElo "1995"]
[BlackElo "1386"]
[Annotator "NA RC"]
[PlyCount "71"]
[EventDate "2019.08.28"]
[EventType "swiss"]
[EventCountry "POR"]
[SourceTitle "playchess.com"]
[Source "ChessBase"]
[SourceQuality "1"]
[TimeControl "5400+30"]

1. d4 {[%emt 0:00:00]} d5 {[%emt 0:00:00]} 2. c4 {[%emt 0:00:00]} c6 {[%emt 0:00:00]} 3. Nf3 {[%emt 0:00:00]} Nf6 {[%emt 0:01:30]} 4. Nc3 {[%emt 0:00:00]} dxc4 {[%emt 0:05:03]} 5. a4 {[%emt 0:00:19]} Bf5 {[%emt 0:00:25]} 6. e3 {[%emt 0:00:46]} Bd3 {[%emt 0:00:50]} 7. Bxd3 {[%emt 0:00:31]} cxd3 {[%emt 0:00:05]} 8. Qxd3 {[%emt 0:00:07]} e6 {[%emt 0:00:06]} 9. O-O {[%emt 0:07:07]} Be7 {[%emt 0:07:22] D18: Slav Defence: 5 a4 Bf5 6 e3} 10. Rd1 {[%emt 0:05:12]} O-O {[%emt 0:02:31]} 11. e4 {[%emt 0:02:39]} a5 {[%emt 0:10:17]} 12. Bg5 {[%emt 0:05:21]} Na6 {[%emt 0:09:59]} 13. Bxf6 $146 {[%emt 0:04:36]} ({Predecessor:} 13. Rac1 Nb4 14. Qd2 Qb6 15. d5 Rfd8 16. Qe2 Qa6 17. Qxa6 Nxa6 {1-0 (33) Moradiabadi,E (2439)-Ibrahimov,R (2501) Teheran 2005}) 13... Bxf6 {[%emt 0:00:32]} 14. e5 {[%emt 0:00:06]} Be7 {[%emt 0:00:26]} 15. Qe4 {[%emt 0:00:47]} Qb6 {[%emt 0:03:11]} 16. Qg4 {[%emt 0:10:36]} Nb4 {[%emt 0:20:53]} 17. Ne4 {[%emt 0:08:18]} Nd5 {[%emt 0:00:54]} 18. Nfd2 {[%emt 0:24:10]} Qb4 {[%emt 0:10:22]} 19. Ra3 {[%emt 0:06:49]} b5 {[%emt 0:05:22]} 20. Rg3 {[%emt 0:02:10]} g6 $17 {[%emt 0:01:02]} 21. h4 {[%emt 0:05:04]} h5 {[%emt 0:02:25]} 22. Qxh5 {[%emt 0:03:19]} Qxa4 {[%emt 0:01:38]} 23. Qg4 {[%emt 0:01:28]} Bxh4 {[%emt 0:03:12]} 24. b3 {[%emt 0:00:09]} Qxd4 {[%emt 0:04:42]} 25. Nf6+ {[%emt 0:00:09]} Nxf6 {[%emt 0:00:09]} 26. Qxd4 {[%emt 0:00:04]} Bxg3 {[%emt 0:00:09]} 27. exf6 {[%emt 0:00:14]} e5 {[%emt 0:01:27]} 28. Qg4 {[%emt 0:00:40]} Bf4 {[%emt 0:00:15]} 29. Ne4 {[%emt 0:00:08]} Rfd8 {[%emt 0:00:52]} 30. g3 {[%emt 0:00:09]} Bh6 {[%emt 0:01:44]} 31. Rxd8+ {[%emt 0:00:20]} Rxd8 {[%emt 0:00:02]} 32. Qh4 {[%emt 0:01:10]} Bc1 {[%emt 0:01:31]} 33. g4 {[%emt 0:00:47]} Rd4 {[%emt 0:02:55]} 34. g5 {[%emt 0:00:40]} Bxg5 {[%emt 0:00:47]} 35. Qxg5 {[%emt 0:00:04]} Kf8 {[%emt 0:00:19]} 36. Qxe5 {[%emt 0:00:10]} 1-0

[Event "Guimaraes Open 2019"]
[Site "Guimaraes"]
[Date "2019.08.30"]
[Round "4.34"]
[White "Lopez Diaz, Pablo"]
[Black "Pinheiro, Albano"]
[Result "0-1"]
[ECO "A52"]
[WhiteElo "1340"]
[BlackElo "1989"]
[Annotator "NA RC"]
[PlyCount "87"]
[EventDate "2019.08.28"]
[EventType "swiss"]
[EventCountry "POR"]
[SourceTitle "playchess.com"]
[Source "ChessBase"]
[SourceQuality "1"]
[TimeControl "5400+30"]

1. d4 {[%emt 0:00:00]} Nf6 {[%emt 0:01:44]} 2. c4 {[%emt 0:00:00]} e5 {[%emt 0:00:04]} 3. dxe5 {[%emt 0:00:17]} Ng4 {[%emt 0:00:09]} 4. Bf4 {[%emt 0:01:30]} Bb4+ {[%emt 0:00:07]} 5. Nd2 {[%emt 0:03:08]} Nc6 {[%emt 0:00:24]} 6. Ngf3 {[%emt 0:00:08]} Qe7 {[%emt 0:00:09]} 7. e4 {[%emt 0:02:35] A52: Budapest Gambit} (7. a3 Ngxe5 8. Nxe5 Nxe5 9. e3 Bxd2+ 10. Qxd2 O-O 11. c5 Rd8 12. Qd5 d6 13. cxd6 cxd6 14. Be2 Be6 15. Qd2 Bc4 16. Bxc4 Nxc4 17. Qd4 d5 18. O-O Na5 {½-½ (30) Tari,A (2595)-Maghsoodloo,P (2584) Kocaeli 2017}) 7... Ngxe5 {[%emt 0:00:27]} 8. Nxe5 {[%emt 0:01:10]} Nxe5 {[%emt 0:00:30]} 9. a3 {[%emt 0:06:25]} Bxd2+ {[%emt 0:02:06]} 10. Qxd2 {[%emt 0:01:02]} d6 {[%emt 0:00:17]} 11. Bd3 {[%emt 0:02:36]} O-O $146 {[%emt 0:07:46]} ({Predecessor:} 11... Nxd3+ 12. Qxd3 O-O 13. O-O Re8 14. Rad1 Qxe4 {½-½ (14) Adamicka,R (1578)-Roth,P (1616) Slovakia 2000}) 12. O-O {[%emt 0:02:00]} Re8 {[%emt 0:04:27]} 13. Rfe1 {[%emt 0:05:56]} Qf6 {[%emt 0:03:37]} 14. Bg3 {[%emt 0:04:57]} Nxd3 {[%emt 0:01:11]} 15. Qxd3 {[%emt 0:00:12]} Qxb2 {[%emt 0:00:07]} 16. e5 {[%emt 0:04:49]} dxe5 {[%emt 0:13:58]} 17. Rab1 {[%emt 0:01:15]} Qa2 {[%emt 0:00:25]} 18. Bxe5 {[%emt 0:02:34]} Be6 {[%emt 0:04:20]} 19. Qg3 {[%emt 0:23:59]} g6 {[%emt 0:02:41]} 20. Qg5 {[%emt 0:00:41]} Bf5 {[%emt 0:03:41]} 21. Rbc1 {[%emt 0:04:56]} Rxe5 {[%emt 0:10:38]} 22. Rxe5 {[%emt 0:00:21]} Be6 {[%emt 0:00:33]} 23. Qf6 {[%emt 0:08:46]} Qxa3 {[%emt 0:05:23]} 24. Rce1 {[%emt 0:02:53]} Qd6 {[%emt 0:04:00]} 25. h4 {[%emt 0:03:22]} Re8 $14 {[%emt 0:06:04]} 26. h5 {[%emt 0:08:03]} Qd8 {[%emt 0:00:28]} 27. Qf3 {[%emt 0:02:00]} b6 {[%emt 0:02:03]} 28. h6 {[%emt 0:01:23]} Qh4 {[%emt 0:03:59]} 29. Qe3 {[%emt 0:00:52]} Qe7 {[%emt 0:04:18]} 30. f4 {[%emt 0:01:19]} Qf6 {[%emt 0:01:42]} 31. Qc3 {[%emt 0:01:01]} Rf8 {[%emt 0:03:32]} 32. Rf1 {[%emt 0:02:06]} Bg4 {[%emt 0:03:47]} (32... a5 $142) 33. Rfe1 {[%emt 0:03:04]} Be6 {[%emt 0:01:26]} 34. Qe3 {[%emt 0:00:21]} Kh8 {[%emt 0:02:38]} 35. g4 {[%emt 0:00:39]} Qh4 {[%emt 0:01:22]} 36. g5 {[%emt 0:02:14]} Qg4+ {[%emt 0:00:14]} 37. Kf2 {[%emt 0:00:32]} Qh4+ {[%emt 0:00:33]} 38. Ke2 {[%emt 0:00:43]} Qh2+ {[%emt 0:01:52]} 39. Kd1 {[%emt 0:00:33]} Rd8+ {[%emt 0:00:24]} 40. Kc1 {[%emt 0:00:11]} Qa2 {[%emt 0:03:55]} 41. Qc3 {[%emt 0:00:21]} Qxc4 {[%emt 0:00:13]} 42. Rxe6+ {[%emt 0:00:07]} Qxc3+ {[%emt 0:00:05]} 43. Kb1 {[%emt 0:00:22]} Qxe1+ 44. Rxe1 0-1

[Event "Guimaraes Open 2019"]
[Site "Guimaraes"]
[Date "2019.08.30"]
[Round "4.35"]
[White "Martins, Diogo Faria Oliveira"]
[Black "Silva, Jose Lucas Ferreira"]
[Result "1-0"]
[ECO "A00"]
[WhiteElo "1984"]
[BlackElo "1261"]
[Annotator "NA RC"]
[PlyCount "83"]
[EventDate "2019.08.28"]
[EventType "swiss"]
[EventCountry "POR"]
[SourceTitle "playchess.com"]
[Source "ChessBase"]
[SourceQuality "1"]
[TimeControl "5400+30"]

1. g3 {[%emt 0:07:24]} e5 {[%emt 0:01:13]} 2. Bg2 {[%emt 0:00:20]} d5 {[%emt 0:00:13]} 3. c4 {[%emt 0:00:05]} Nf6 {[%emt 0:01:10]} 4. cxd5 {[%emt 0:00:04]} Nxd5 {[%emt 0:00:30]} 5. Nc3 {[%emt 0:00:05]} Be6 {[%emt 0:01:28]} 6. Nf3 {[%emt 0:00:05]} Nc6 {[%emt 0:00:30]} 7. O-O {[%emt 0:00:57]} g6 {[%emt 0:00:24]} 8. d4 {[%emt 0:00:20]} Bg7 {[%emt 0:09:10]} 9. dxe5 {[%emt 0:03:27]} Nxc3 {[%emt 0:01:36]} 10. bxc3 {[%emt 0:00:12]} Nxe5 {[%emt 0:00:12]} 11. Nxe5 {[%emt 0:00:05]} Bxe5 {[%emt 0:00:11]} 12. Bxb7 {[%emt 0:00:21]} Qxd1 {[%emt 0:00:38]} 13. Rxd1 {[%emt 0:00:06]} Rb8 {[%emt 0:00:05]} 14. Bc6+ {[%emt 0:00:07]} Ke7 {[%emt 0:00:14]} 15. Ba3+ {[%emt 0:00:27]} Kf6 {[%emt 0:00:19]} 16. Bb4 {[%emt 0:04:50]} Rhd8 {[%emt 0:01:26]} 17. e4 {[%emt 0:11:31]} Bd6 {[%emt 0:03:58]} 18. a3 {[%emt 0:01:28]} Bxb4 {[%emt 0:00:48]} 19. axb4 {[%emt 0:00:24]} Rxd1+ {[%emt 0:00:21]} 20. Rxd1 {[%emt 0:00:30]} Rb6 {[%emt 0:01:01]} 21. Bd5 {[%emt 0:02:55]} Rd6 {[%emt 0:05:15]} 22. f4 {[%emt 0:00:25]} Ke7 {[%emt 0:00:43]} 23. Rd4 {[%emt 0:00:55]} c6 {[%emt 0:04:35]} 24. Bxe6 {[%emt 0:01:05]} Rxd4 {[%emt 0:00:10]} 25. cxd4 {[%emt 0:00:04]} Kxe6 {[%emt 0:00:07]} 26. Kf2 {[%emt 0:00:34]} f5 {[%emt 0:07:23]} 27. e5 {[%emt 0:01:04]} h6 {[%emt 0:01:28]} 28. Ke3 {[%emt 0:00:09]} Kd5 {[%emt 0:00:19]} 29. Kd3 {[%emt 0:00:03]} g5 {[%emt 0:00:53]} 30. Kc3 {[%emt 0:00:07]} a6 {[%emt 0:00:19]} 31. Kd3 {[%emt 0:00:05]} g4 {[%emt 0:00:45]} 32. Kc3 {[%emt 0:00:02]} h5 {[%emt 0:00:59]} 33. Kd3 {[%emt 0:00:07]} Ke6 {[%emt 0:00:18]} 34. Kc4 {[%emt 0:00:06]} Kd7 {[%emt 0:00:11]} 35. Kc5 {[%emt 0:00:05]} Kc7 {[%emt 0:00:25]} 36. e6 {[%emt 0:00:04]} Kd8 {[%emt 0:00:30]} 37. Kd6 {[%emt 0:00:23]} Ke8 {[%emt 0:00:36]} 38. e7 {[%emt 0:00:10]} c5 {[%emt 0:00:12]} 39. dxc5 {[%emt 0:00:05]} a5 {[%emt 0:00:11]} 40. bxa5 {[%emt 0:00:07]} h4 {[%emt 0:00:06]} 41. gxh4 {[%emt 0:00:05]} g3 {[%emt 0:00:08]} 42. hxg3 {[%emt 0:00:05]} 1-0

[Event "Guimaraes Open 2019"]
[Site "Guimaraes"]
[Date "2019.08.30"]
[Round "4.36"]
[White "Dieguez Novoa, Benjamin"]
[Black "Gonzalez Eiris, Daniel"]
[Result "0-1"]
[ECO "B50"]
[WhiteElo "1333"]
[BlackElo "1977"]
[Annotator "NA RC"]
[PlyCount "84"]
[EventDate "2019.08.28"]
[EventType "swiss"]
[EventCountry "POR"]
[SourceTitle "playchess.com"]
[Source "ChessBase"]
[SourceQuality "1"]
[TimeControl "5400+30"]

1. e4 {[%emt 0:00:00]} c5 {[%emt 0:01:18]} 2. Nf3 {[%emt 0:00:23]} d6 {[%emt 0:00:05]} 3. g3 {[%emt 0:00:10]} Nf6 {[%emt 0:00:24]} 4. d3 {[%emt 0:00:27]} Nc6 {[%emt 0:00:27]} 5. Bg2 {[%emt 0:00:16]} g6 {[%emt 0:01:02]} 6. O-O {[%emt 0:00:13]} Bg7 {[%emt 0:00:04]} 7. Nc3 {[%emt 0:00:35]} O-O {[%emt 0:00:46]} 8. Be3 {[%emt 0:01:09]} Ng4 {[%emt 0:00:50]} 9. Qd2 {[%emt 0:01:02]} Rb8 {[%emt 0:00:48]} 10. a4 {[%emt 0:00:48]} a6 {[%emt 0:01:29]} 11. Rab1 {[%emt 0:01:47]} Nxe3 {[%emt 0:02:06]} 12. fxe3 {[%emt 0:00:36]} Bg4 {[%emt 0:01:05]} 13. Nd5 {[%emt 0:01:00]} e6 {[%emt 0:01:21]} 14. Nf4 {[%emt 0:01:47]} Bxf3 {[%emt 0:00:06]} 15. Rxf3 {[%emt 0:00:36]} b5 {[%emt 0:00:44]} 16. axb5 {[%emt 0:01:06]} axb5 {[%emt 0:00:06]} 17. Rff1 {[%emt 0:00:47]} h5 {[%emt 0:02:43]} 18. Qf2 {[%emt 0:02:25]} b4 {[%emt 0:02:28]} 19. b3 {[%emt 0:01:22]} Nd4 {[%emt 0:00:48]} 20. Kh1 {[%emt 0:02:58]} Nb5 {[%emt 0:00:05]} 21. Ne2 {[%emt 0:01:00]} Ra8 {[%emt 0:06:45]} 22. Rfc1 {[%emt 0:02:28]} Na3 {[%emt 0:00:30]} 23. e5 {[%emt 0:00:47]} Nxb1 {[%emt 0:00:08]} 24. Bxa8 {[%emt 0:00:29]} Qxa8+ {[%emt 0:00:04]} 25. e4 {[%emt 0:00:24]} Nc3 {[%emt 0:00:36]} 26. Nxc3 {[%emt 0:00:27]} bxc3 {[%emt 0:00:03]} 27. exd6 {[%emt 0:00:09]} Bd4 {[%emt 0:00:27]} 28. Qf4 {[%emt 0:01:32]} Qd8 {[%emt 0:01:14]} 29. Ra1 {[%emt 0:01:45]} e5 {[%emt 0:01:36]} 30. Qf3 {[%emt 0:03:18]} Qxd6 {[%emt 0:00:12]} 31. Ra4 {[%emt 0:01:21]} Qc6 {[%emt 0:01:09]} 32. g4 {[%emt 0:01:00]} hxg4 {[%emt 0:00:17]} 33. Qxg4 {[%emt 0:00:14]} Ra8 {[%emt 0:00:05]} 34. Rxa8+ {[%emt 0:02:36]} Qxa8 {[%emt 0:00:05]} 35. h4 {[%emt 0:00:16]} Qa1+ {[%emt 0:00:49]} 36. Kh2 {[%emt 0:00:19]} Qc1 {[%emt 0:00:57]} 37. Qg2 {[%emt 0:01:51]} Qf4+ {[%emt 0:01:04]} 38. Kh3 Bf2 {[%emt 0:01:49]} 39. Qg5 {[%emt 0:02:28]} Qf3+ {[%emt 0:01:54]} 40. Kh2 {[%emt 0:00:34]} Be3 {[%emt 0:00:18]} 41. Qg2 {[%emt 0:00:49]} Bf4+ {[%emt 0:00:11]} 42. Kh1 {[%emt 0:00:31]} Qd1+ 0-1

[Event "Guimaraes Open 2019"]
[Site "Guimaraes"]
[Date "2019.08.30"]
[Round "4.38"]
[White "Perez Sousa, Jose Maria"]
[Black "Reis, Angelica Mufato"]
[Result "1-0"]
[ECO "A38"]
[WhiteElo "1809"]
[BlackElo "1444"]
[Annotator "NA RC"]
[PlyCount "67"]
[EventDate "2019.08.28"]
[EventType "swiss"]
[EventCountry "POR"]
[SourceTitle "playchess.com"]
[Source "ChessBase"]
[SourceQuality "1"]
[TimeControl "5400+30"]

1. c4 {[%emt 0:00:00]} c5 {[%emt 0:00:00]} 2. d3 {[%emt 0:00:00]} Nf6 {[%emt 0:00:07]} 3. Nf3 {[%emt 0:00:00]} Nc6 {[%emt 0:00:19]} 4. g3 {[%emt 0:00:15]} g6 {[%emt 0:01:55]} 5. Bg2 {[%emt 0:00:40]} Bg7 {[%emt 0:00:07]} 6. O-O {[%emt 0:00:11]} O-O {[%emt 0:00:14]} 7. Nc3 {[%emt 0:00:09]} d6 {[%emt 0:07:41]} 8. Bg5 {[%emt 0:01:00]} Bd7 {[%emt 0:07:41]} 9. Qd2 {[%emt 0:01:48]} Rb8 {[%emt 0:07:40]} 10. Rab1 {[%emt 0:01:45]} a6 {[%emt 0:07:08]} 11. Bh6 {[%emt 0:01:56]} e6 {[%emt 0:01:04]} 12. Bxg7 {[%emt 0:00:27]} Kxg7 {[%emt 0:00:07]} 13. Qe3 {[%emt 0:02:26]} Re8 {[%emt 0:02:58]} 14. a3 {[%emt 0:01:38]} a5 {[%emt 0:01:52]} 15. Nb5 {[%emt 0:02:08]} a4 {[%emt 0:00:54]} 16. Nxd6 {[%emt 0:00:39]} Re7 {[%emt 0:00:25]} 17. Qxc5 {[%emt 0:00:51]} b6 {[%emt 0:02:37]} 18. Qe3 {[%emt 0:03:07]} Na5 {[%emt 0:03:51]} 19. Nb5 {[%emt 0:04:33]} Bxb5 {[%emt 0:02:51]} 20. cxb5 {[%emt 0:02:13]} Nd5 {[%emt 0:00:09]} 21. Qe5+ {[%emt 0:00:45]} Kg8 {[%emt 0:01:07]} 22. Qg5 {[%emt 0:01:20]} Qe8 {[%emt 0:01:58]} 23. Qh6 {[%emt 0:01:00]} f6 {[%emt 0:00:38]} 24. Qh4 Qxb5 25. e4 {[%emt 0:08:12]} Nc7 {[%emt 0:01:52]} 26. Qxf6 {[%emt 0:00:19]} Rf7 {[%emt 0:00:12]} 27. Qh4 {[%emt 0:00:14]} Qxd3 {[%emt 0:00:54]} 28. Ng5 {[%emt 0:01:59]} Rg7 {[%emt 0:01:24]} 29. Qg4 {[%emt 0:02:07]} e5 {[%emt 0:01:39]} 30. Ne6 {[%emt 0:01:29]} Re7 {[%emt 0:00:29]} 31. Nxc7 {[%emt 0:02:00]} Rxc7 {[%emt 0:00:08]} 32. Qe6+ {[%emt 0:00:19]} Kf8 {[%emt 0:00:54]} 33. Rfd1 {[%emt 0:01:20]} Qb5 {[%emt 0:01:13]} 34. Qd6+ {[%emt 0:00:59]} 1-0